[Event "Early Titled Tuesday Blitz | February 8 2022"]
[White "Ter-Sahakyan, Samvel"]
[Black "Caruana, Fabiano"]
[WhiteFideId "13302531"]
[BlackFideId "2020009"]
[WhiteElo "2592"]
[BlackElo "2744"]
[Result "0-1"]
[Round "05"]
[TimeControl "180+1"]
[Date "2022.02.08"]
[WhiteClock "0:00:01"]
[BlackClock "0:00:07"]

1. d4 {[%clk 0:03:00]}  e6 {[%clk 0:02:59]} 2. e4 {[%clk 0:02:56]}  d5 {[%clk 0:02:59]} 3. e5 {[%clk 0:02:56]}  c5 {[%clk 0:02:59]} 4. c3 {[%clk 0:02:57]}  Nc6 {[%clk 0:02:59]} 5. Nf3 {[%clk 0:02:57]}  Bd7 {[%clk 0:03:00]} 6. Be2 {[%clk 0:02:53]}  Nge7 {[%clk 0:02:59]} 7. O-O {[%clk 0:02:53]}  Ng6 {[%clk 0:02:59]} 8. Re1 {[%clk 0:02:41]}  Be7 {[%clk 0:02:57]} 9. Bd3 {[%clk 0:02:40]}  O-O {[%clk 0:02:56]} 10. Be3 {[%clk 0:02:17]}  Qb6 {[%clk 0:02:36]} 11. Qd2 {[%clk 0:02:12]}  Rac8 {[%clk 0:02:30]} 12. dxc5 {[%clk 0:02:05]}  Bxc5 {[%clk 0:02:29]} 13. Bxc5 {[%clk 0:02:01]}  Qxc5 {[%clk 0:02:30]} 14. h4 {[%clk 0:01:48]}  h6 {[%clk 0:01:58]} 15. Na3 {[%clk 0:01:32]}  f5 {[%clk 0:01:53]} 16. Nc2 {[%clk 0:01:23]}  Qe7 {[%clk 0:01:52]} 17. g3 {[%clk 0:01:19]}  Nh8 {[%clk 0:01:44]} 18. Ncd4 {[%clk 0:01:18]}  Nf7 {[%clk 0:01:32]} 19. Kg2 {[%clk 0:01:11]}  a6 {[%clk 0:01:28]} 20. Re2 {[%clk 0:01:08]}  g6 {[%clk 0:01:09]} 21. h5 {[%clk 0:00:52]}  Ng5 {[%clk 0:00:32]} 22. hxg6 {[%clk 0:00:42]}  Be8 {[%clk 0:00:32]} 23. Rh1 {[%clk 0:00:37]}  Nxd4 {[%clk 0:00:24]} 24. cxd4 {[%clk 0:00:32]}  Kg7 {[%clk 0:00:17]} 25. Nxg5 {[%clk 0:00:26]}  Qxg5 {[%clk 0:00:18]} 26. Qxg5 {[%clk 0:00:26]}  hxg5 {[%clk 0:00:19]} 27. Rh7+ {[%clk 0:00:25]}  Kxg6 {[%clk 0:00:20]} 28. Rxb7 {[%clk 0:00:26]}  a5 {[%clk 0:00:20]} 29. Rb6 {[%clk 0:00:21]}  Kf7 {[%clk 0:00:16]} 30. Rc2 {[%clk 0:00:19]}  Rxc2 {[%clk 0:00:16]} 31. Bxc2 {[%clk 0:00:19]}  g4 {[%clk 0:00:15]} 32. Ra6 {[%clk 0:00:17]}  Bb5 {[%clk 0:00:15]} 33. Rxa5 {[%clk 0:00:11]}  Be2 {[%clk 0:00:15]} 34. Ra7+ {[%clk 0:00:09]}  Kg6 {[%clk 0:00:16]} 35. Re7 {[%clk 0:00:07]}  Rh8 {[%clk 0:00:16]} 36. Rxe6+ {[%clk 0:00:07]}  Kg5 {[%clk 0:00:16]} 37. f4+ {[%clk 0:00:05]}  gxf3+ {[%clk 0:00:16]} 38. Kf2 {[%clk 0:00:05]}  Rh2+ {[%clk 0:00:16]} 39. Ke3 {[%clk 0:00:05]}  Bc4 {[%clk 0:00:15]} 40. Bd3 {[%clk 0:00:03]}  Bxd3 {[%clk 0:00:11]} 41. Kxd3 {[%clk 0:00:03]}  Rxb2 {[%clk 0:00:11]} 42. Rc6 {[%clk 0:00:03]}  Kg4 {[%clk 0:00:08]} 43. e6 {[%clk 0:00:03]}  Kxg3 {[%clk 0:00:08]} 44. e7 {[%clk 0:00:02]}  Re2 {[%clk 0:00:08]} 45. Rg6+ {[%clk 0:00:01]}  Kf4 {[%clk 0:00:08]} 46. Rg7 {[%clk 0:00:01]}  Re4 {[%clk 0:00:07]} 0-1


[Site "https://www.chess.com"]

[Event "Early Titled Tuesday Blitz | February 8 2022"]
[White "Terletsky, Oleg"]
[Black "Sokolovsky, Yahli"]
[WhiteFideId "14116774"]
[BlackFideId "2820242"]
[WhiteElo "2050"]
[BlackElo "1770"]
[Result "1-0"]
[Round "05"]
[TimeControl "180+1"]
[Date "2022.02.08"]
[WhiteClock "0:00:11"]
[BlackClock "0:00:02"]

1. e4 {[%clk 0:03:00]}  g6 {[%clk 0:02:59]} 2. d4 {[%clk 0:03:00]}  Bg7 {[%clk 0:02:59]} 3. Nc3 {[%clk 0:03:00]}  d6 {[%clk 0:02:56]} 4. Bf4 {[%clk 0:02:59]}  a6 {[%clk 0:02:50]} 5. h4 {[%clk 0:02:56]}  h6 {[%clk 0:02:45]} 6. Qd2 {[%clk 0:02:53]}  b5 {[%clk 0:02:44]} 7. O-O-O {[%clk 0:02:42]}  Bb7 {[%clk 0:02:43]} 8. f3 {[%clk 0:02:42]}  Nd7 {[%clk 0:02:43]} 9. Nh3 {[%clk 0:02:26]}  Rc8 {[%clk 0:02:26]} 10. Kb1 {[%clk 0:02:01]}  c5 {[%clk 0:02:26]} 11. dxc5 {[%clk 0:01:59]}  Nxc5 {[%clk 0:02:26]} 12. Nd5 {[%clk 0:01:47]}  Na4 {[%clk 0:02:06]} 13. c3 {[%clk 0:01:29]}  Bxd5 {[%clk 0:01:57]} 14. exd5 {[%clk 0:01:21]}  Qa5 {[%clk 0:01:22]} 15. Rc1 {[%clk 0:01:20]}  Nf6 {[%clk 0:00:28]} 16. Nf2 {[%clk 0:01:20]}  Nh5 {[%clk 0:00:25]} 17. Bh2 {[%clk 0:01:12]}  O-O {[%clk 0:00:07]} 18. g4 {[%clk 0:01:12]}  Nf6 {[%clk 0:00:07]} 19. g5 {[%clk 0:01:10]}  hxg5 {[%clk 0:00:06]} 20. hxg5 {[%clk 0:01:09]}  Nh5 {[%clk 0:00:06]} 21. Ne4 {[%clk 0:01:07]}  b4 {[%clk 0:00:06]} 22. cxb4 {[%clk 0:00:50]}  Rxc1+ {[%clk 0:00:06]} 23. Kxc1 {[%clk 0:00:45]}  Rc8+ {[%clk 0:00:03]} 24. Kb1 {[%clk 0:00:43]}  Qb6 {[%clk 0:00:02]} 25. Bh3 {[%clk 0:00:34]}  Rb8 {[%clk 0:00:02]} 26. a3 {[%clk 0:00:27]}  Bxb2 {[%clk 0:00:02]} 27. Bg1 {[%clk 0:00:27]}  Qb7 {[%clk 0:00:02]} 28. Bf1 {[%clk 0:00:11]} 1-0


[Site "https://www.chess.com"]

[Event "Early Titled Tuesday Blitz | February 8 2022"]
[White "Tologon tegin, Semetei"]
[Black "Bocharov, Dmitry"]
[WhiteFideId "13800574"]
[BlackFideId "4138716"]
[WhiteElo "2258"]
[BlackElo "2541"]
[Result "0-1"]
[Round "05"]
[TimeControl "180+1"]
[Date "2022.02.08"]
[WhiteClock "0:00:11"]
[BlackClock "0:00:24"]

1. e4 {[%clk 0:03:00]}  c5 {[%clk 0:02:59]} 2. Nc3 {[%clk 0:03:00]}  d6 {[%clk 0:02:58]} 3. f4 {[%clk 0:02:57]}  g6 {[%clk 0:02:54]} 4. Nf3 {[%clk 0:02:57]}  Bg7 {[%clk 0:02:54]} 5. Bc4 {[%clk 0:02:57]}  e6 {[%clk 0:02:53]} 6. O-O {[%clk 0:02:56]}  Ne7 {[%clk 0:02:52]} 7. d3 {[%clk 0:02:56]}  Nbc6 {[%clk 0:02:47]} 8. Qe1 {[%clk 0:02:55]}  O-O {[%clk 0:02:45]} 9. f5 {[%clk 0:02:52]}  gxf5 {[%clk 0:02:45]} 10. Bg5 {[%clk 0:02:44]}  f6 {[%clk 0:02:39]} 11. Bd2 {[%clk 0:02:40]}  Kh8 {[%clk 0:02:24]} 12. Qh4 {[%clk 0:02:09]}  fxe4 {[%clk 0:02:20]} 13. dxe4 {[%clk 0:02:08]}  Ng6 {[%clk 0:02:15]} 14. Qh5 {[%clk 0:02:06]}  Nce5 {[%clk 0:02:13]} 15. Be2 {[%clk 0:01:50]}  Bd7 {[%clk 0:02:11]} 16. Rad1 {[%clk 0:01:49]}  Bc6 {[%clk 0:02:09]} 17. Be3 {[%clk 0:01:42]}  Qe7 {[%clk 0:02:07]} 18. g4 {[%clk 0:01:33]}  Rg8 {[%clk 0:01:45]} 19. g5 {[%clk 0:01:21]}  Raf8 {[%clk 0:01:42]} 20. Kh1 {[%clk 0:01:08]}  f5 {[%clk 0:01:38]} 21. Nxe5 {[%clk 0:01:01]}  Bxe5 {[%clk 0:01:36]} 22. Bf3 {[%clk 0:00:58]}  Bf4 {[%clk 0:01:07]} 23. Bxf4 {[%clk 0:00:44]}  Nxf4 {[%clk 0:01:06]} 24. Qh4 {[%clk 0:00:44]}  Qxg5 {[%clk 0:01:05]} 25. Qxg5 {[%clk 0:00:45]}  Rxg5 {[%clk 0:01:05]} 26. exf5 {[%clk 0:00:42]}  Rfxf5 {[%clk 0:00:54]} 27. Bxc6 {[%clk 0:00:39]}  bxc6 {[%clk 0:00:54]} 28. Rxd6 {[%clk 0:00:39]}  Nh3 {[%clk 0:00:54]} 29. Rdd1 {[%clk 0:00:12]}  Nf2+ {[%clk 0:00:39]} 30. Rxf2 {[%clk 0:00:12]}  Rxf2 {[%clk 0:00:40]} 31. Ne4 {[%clk 0:00:13]}  Rgg2 {[%clk 0:00:34]} 32. Nxf2 {[%clk 0:00:13]}  Rxf2 {[%clk 0:00:35]} 33. Rd8+ {[%clk 0:00:11]}  Kg7 {[%clk 0:00:34]} 34. Rd6 {[%clk 0:00:11]}  Kf6 {[%clk 0:00:32]} 35. Rxc6 {[%clk 0:00:11]}  Rxc2 {[%clk 0:00:32]} 36. Ra6 {[%clk 0:00:10]}  Rxb2 {[%clk 0:00:32]} 37. Rxa7 {[%clk 0:00:10]}  Ke5 {[%clk 0:00:32]} 38. Rxh7 {[%clk 0:00:10]}  Rxa2 {[%clk 0:00:32]} 39. Rh3 {[%clk 0:00:09]}  c4 {[%clk 0:00:31]} 40. Re3+ {[%clk 0:00:09]}  Kd5 {[%clk 0:00:32]} 41. h4 {[%clk 0:00:10]}  e5 {[%clk 0:00:30]} 42. h5 {[%clk 0:00:10]}  Kd4 {[%clk 0:00:31]} 43. Re1 {[%clk 0:00:10]}  c3 {[%clk 0:00:28]} 44. h6 {[%clk 0:00:10]}  Ra6 {[%clk 0:00:28]} 45. Kg2 {[%clk 0:00:09]}  Rxh6 {[%clk 0:00:28]} 46. Kf3 {[%clk 0:00:10]}  Rh3+ {[%clk 0:00:25]} 47. Ke2 {[%clk 0:00:10]}  Re3+ {[%clk 0:00:24]} 48. Kd1 {[%clk 0:00:10]}  Rxe1+ {[%clk 0:00:25]} 49. Kc2 {[%clk 0:00:11]}  Re2+ {[%clk 0:00:24]} 0-1


[Site "https://www.chess.com"]

[Event "Early Titled Tuesday Blitz | February 8 2022"]
[White "Toncheva, Nadya"]
[Black "Bashirli, Saadat"]
[WhiteFideId "2924056"]
[BlackFideId "13429990"]
[WhiteElo "1920"]
[BlackElo "1173"]
[Result "1-0"]
[Round "05"]
[TimeControl "180+1"]
[Date "2022.02.08"]
[WhiteClock "0:01:01"]
[BlackClock "0:00:33"]

1. e4 {[%clk 0:03:00]}  c5 {[%clk 0:02:59]} 2. Nf3 {[%clk 0:03:01]}  g6 {[%clk 0:02:58]} 3. c3 {[%clk 0:03:01]}  Nf6 {[%clk 0:02:57]} 4. e5 {[%clk 0:03:00]}  Nd5 {[%clk 0:02:57]} 5. Bc4 {[%clk 0:02:58]}  Nb6 {[%clk 0:02:56]} 6. Bxf7+ {[%clk 0:02:17]}  Kxf7 {[%clk 0:02:55]} 7. Ng5+ {[%clk 0:02:17]}  Kg8 {[%clk 0:02:53]} 8. Qf3 {[%clk 0:02:16]}  Qe8 {[%clk 0:02:51]} 9. h4 {[%clk 0:02:05]}  Bg7 {[%clk 0:02:43]} 10. d4 {[%clk 0:02:03]}  cxd4 {[%clk 0:02:41]} 11. cxd4 {[%clk 0:02:04]}  Nc6 {[%clk 0:02:40]} 12. Be3 {[%clk 0:01:59]}  Nc4 {[%clk 0:02:34]} 13. Qd5+ {[%clk 0:01:58]}  e6 {[%clk 0:02:28]} 14. Qxc4 {[%clk 0:01:57]}  h6 {[%clk 0:02:22]} 15. Ne4 {[%clk 0:01:57]}  Qe7 {[%clk 0:02:18]} 16. Nbc3 {[%clk 0:01:52]}  Kh7 {[%clk 0:02:13]} 17. h5 {[%clk 0:01:49]}  g5 {[%clk 0:02:10]} 18. Nd6 {[%clk 0:01:49]}  Rf8 {[%clk 0:01:39]} 19. O-O-O {[%clk 0:01:44]}  a6 {[%clk 0:01:36]} 20. Kb1 {[%clk 0:01:43]}  b5 {[%clk 0:01:34]} 21. Qd3+ {[%clk 0:01:43]}  Kg8 {[%clk 0:01:32]} 22. Nce4 {[%clk 0:01:41]}  Rb8 {[%clk 0:01:25]} 23. Nc5 {[%clk 0:01:37]}  Nb4 {[%clk 0:01:22]} 24. Qe4 {[%clk 0:01:33]}  Nd5 {[%clk 0:01:21]} 25. Bc1 {[%clk 0:01:29]}  a5 {[%clk 0:01:17]} 26. Rdf1 {[%clk 0:01:23]}  b4 {[%clk 0:01:12]} 27. f4 {[%clk 0:01:19]}  gxf4 {[%clk 0:01:11]} 28. Bxf4 {[%clk 0:01:19]}  Nxf4 {[%clk 0:00:55]} 29. Rxf4 {[%clk 0:01:19]}  Rxf4 {[%clk 0:00:54]} 30. Qxf4 {[%clk 0:01:19]}  Kh7 {[%clk 0:00:48]} 31. Rf1 {[%clk 0:01:17]}  Rb6 {[%clk 0:00:41]} 32. Qe4+ {[%clk 0:01:14]}  Kg8 {[%clk 0:00:40]} 33. Nxc8 {[%clk 0:01:12]}  Qd8 {[%clk 0:00:38]} 34. Nxb6 {[%clk 0:01:11]}  Qxb6 {[%clk 0:00:39]} 35. Qa8+ {[%clk 0:01:10]}  Kh7 {[%clk 0:00:40]} 36. Qe8 {[%clk 0:01:06]}  Qc6 {[%clk 0:00:35]} 37. Qg6+ {[%clk 0:01:05]}  Kh8 {[%clk 0:00:33]} 38. Rf7 {[%clk 0:01:01]} 1-0


[Site "https://www.chess.com"]

[Event "Early Titled Tuesday Blitz | February 8 2022"]
[White "Urazayev, Arystanbek"]
[Black "Volkov, Maksim"]
[WhiteFideId "13709810"]
[BlackFideId "54123070"]
[WhiteElo "2321"]
[BlackElo "2081"]
[Result "1-0"]
[Round "05"]
[TimeControl "180+1"]
[Date "2022.02.08"]
[WhiteClock "0:00:23"]
[BlackClock "0:00:07"]

1. e4 {[%clk 0:03:00]}  c5 {[%clk 0:02:59]} 2. Nf3 {[%clk 0:03:00]}  d6 {[%clk 0:03:00]} 3. d4 {[%clk 0:03:01]}  cxd4 {[%clk 0:03:00]} 4. Nxd4 {[%clk 0:03:02]}  Nf6 {[%clk 0:03:01]} 5. Nc3 {[%clk 0:03:02]}  a6 {[%clk 0:03:01]} 6. Rg1 {[%clk 0:03:03]}  e5 {[%clk 0:02:56]} 7. Nb3 {[%clk 0:03:03]}  Be7 {[%clk 0:02:55]} 8. g4 {[%clk 0:03:03]}  h6 {[%clk 0:02:54]} 9. h4 {[%clk 0:03:03]}  Nc6 {[%clk 0:02:43]} 10. g5 {[%clk 0:03:03]}  hxg5 {[%clk 0:02:42]} 11. hxg5 {[%clk 0:03:04]}  Nh5 {[%clk 0:02:40]} 12. g6 {[%clk 0:03:04]}  f5 {[%clk 0:02:31]} 13. Bc4 {[%clk 0:03:03]}  Nf6 {[%clk 0:02:21]} 14. Bg5 {[%clk 0:02:50]}  fxe4 {[%clk 0:01:59]} 15. Bxf6 {[%clk 0:02:36]}  Bxf6 {[%clk 0:01:59]} 16. Nxe4 {[%clk 0:02:36]}  Be7 {[%clk 0:01:46]} 17. Bf7+ {[%clk 0:02:36]}  Kd7 {[%clk 0:01:46]} 18. Qd2 {[%clk 0:01:40]}  Kc7 {[%clk 0:01:41]} 19. O-O-O {[%clk 0:01:40]}  Bf5 {[%clk 0:01:37]} 20. Nc3 {[%clk 0:01:31]}  Rc8 {[%clk 0:01:25]} 21. Nd5+ {[%clk 0:01:17]}  Kb8 {[%clk 0:01:24]} 22. c3 {[%clk 0:01:14]}  Bh4 {[%clk 0:01:13]} 23. Qe3 {[%clk 0:00:53]}  Rh5 {[%clk 0:00:57]} 24. Qf3 {[%clk 0:00:41]}  Bg5+ {[%clk 0:00:56]} 25. Ne3 {[%clk 0:00:42]}  Bxe3+ {[%clk 0:00:50]} 26. fxe3 {[%clk 0:00:42]}  Qh8 {[%clk 0:00:40]} 27. e4 {[%clk 0:00:33]}  Bd7 {[%clk 0:00:36]} 28. Rxd6 {[%clk 0:00:30]}  Rh3 {[%clk 0:00:36]} 29. Qd1 {[%clk 0:00:27]}  Be8 {[%clk 0:00:28]} 30. Be6 {[%clk 0:00:26]}  Qh6+ {[%clk 0:00:14]} 31. Qd2 {[%clk 0:00:26]}  Rd8 {[%clk 0:00:08]} 32. Bxh3 {[%clk 0:00:21]}  Rxd6 {[%clk 0:00:08]} 33. Qxh6 {[%clk 0:00:22]}  gxh6 {[%clk 0:00:09]} 34. g7 {[%clk 0:00:23]}  Bf7 {[%clk 0:00:08]} 35. Rf1 {[%clk 0:00:23]}  Bg8 {[%clk 0:00:06]} 36. Rf8+ {[%clk 0:00:21]}  Rd8 {[%clk 0:00:07]} 37. Nc5 {[%clk 0:00:22]}  Kc7 {[%clk 0:00:06]} 38. Be6 {[%clk 0:00:22]}  Bxe6 {[%clk 0:00:07]} 39. Nxe6+ {[%clk 0:00:23]} 1-0


[Site "https://www.chess.com"]

[Event "Early Titled Tuesday Blitz | February 8 2022"]
[White "Vakhlamov, Igor L."]
[Black "Deac, Bogdan-Daniel"]
[WhiteFideId "24126748"]
[BlackFideId "1226380"]
[WhiteElo "2401"]
[BlackElo "2646"]
[Result "0-1"]
[Round "05"]
[TimeControl "180+1"]
[Date "2022.02.08"]
[WhiteClock "0:00:15"]
[BlackClock "0:00:26"]

1. e4 {[%clk 0:02:35]}  c5 {[%clk 0:03:00]} 2. Nf3 {[%clk 0:02:35]}  Nc6 {[%clk 0:03:00]} 3. Nc3 {[%clk 0:02:35]}  e5 {[%clk 0:02:56]} 4. Bc4 {[%clk 0:02:36]}  Be7 {[%clk 0:02:55]} 5. d3 {[%clk 0:02:36]}  d6 {[%clk 0:02:56]} 6. O-O {[%clk 0:02:36]}  h6 {[%clk 0:02:53]} 7. h3 {[%clk 0:02:31]}  Nf6 {[%clk 0:02:51]} 8. a3 {[%clk 0:02:29]}  O-O {[%clk 0:02:49]} 9. Nh2 {[%clk 0:02:29]}  Be6 {[%clk 0:02:39]} 10. f4 {[%clk 0:02:28]}  exf4 {[%clk 0:02:26]} 11. Bxf4 {[%clk 0:02:26]}  d5 {[%clk 0:02:21]} 12. exd5 {[%clk 0:02:27]}  Nxd5 {[%clk 0:02:21]} 13. Nxd5 {[%clk 0:02:23]}  Bxd5 {[%clk 0:02:22]} 14. Nf3 {[%clk 0:02:03]}  Bxc4 {[%clk 0:02:06]} 15. dxc4 {[%clk 0:02:04]}  Qb6 {[%clk 0:02:06]} 16. b3 {[%clk 0:01:49]}  Bf6 {[%clk 0:02:03]} 17. Rb1 {[%clk 0:01:49]}  Rad8 {[%clk 0:01:58]} 18. Qc1 {[%clk 0:01:36]}  Rfe8 {[%clk 0:01:44]} 19. Re1 {[%clk 0:01:30]}  Nd4 {[%clk 0:01:43]} 20. Nxd4 {[%clk 0:01:18]}  Bxd4+ {[%clk 0:01:43]} 21. Kh1 {[%clk 0:01:19]}  Qf6 {[%clk 0:01:36]} 22. Rf1 {[%clk 0:01:03]}  Re2 {[%clk 0:01:21]} 23. Qd1 {[%clk 0:00:26]}  Qe6 {[%clk 0:00:53]} 24. Qd3 {[%clk 0:00:24]}  Re8 {[%clk 0:00:45]} 25. c3 {[%clk 0:00:21]}  Qc6 {[%clk 0:00:36]} 26. Qg3 {[%clk 0:00:21]}  Bxc3 {[%clk 0:00:29]} 27. Bxh6 {[%clk 0:00:21]}  Qxh6 {[%clk 0:00:29]} 28. Qxc3 {[%clk 0:00:21]}  R8e3 {[%clk 0:00:30]} 29. Qc1 {[%clk 0:00:14]}  Rxh3+ {[%clk 0:00:27]} 30. Kg1 {[%clk 0:00:15]}  Rh1# {[%clk 0:00:26]} 0-1


[Site "https://www.chess.com"]

[Event "Early Titled Tuesday Blitz | February 8 2022"]
[White "Xiong, Jeffery"]
[Black "Jumabayev, Rinat"]
[WhiteFideId "2047640"]
[BlackFideId "13702661"]
[WhiteElo "2727"]
[BlackElo "2561"]
[Result "1-0"]
[Round "05"]
[TimeControl "180+1"]
[Date "2022.02.08"]
[WhiteClock "0:00:01"]
[BlackClock "0:00:02"]

1. d4 {[%clk 0:03:00]}  Nf6 {[%clk 0:02:59]} 2. Nf3 {[%clk 0:03:01]}  e6 {[%clk 0:02:59]} 3. Bf4 {[%clk 0:03:01]}  b6 {[%clk 0:02:57]} 4. e3 {[%clk 0:02:57]}  Bb7 {[%clk 0:02:57]} 5. Nbd2 {[%clk 0:02:52]}  Nh5 {[%clk 0:02:57]} 6. Bg5 {[%clk 0:02:52]}  Be7 {[%clk 0:02:58]} 7. h4 {[%clk 0:02:48]}  h6 {[%clk 0:02:54]} 8. Bxe7 {[%clk 0:02:46]}  Qxe7 {[%clk 0:02:55]} 9. Bd3 {[%clk 0:02:44]}  d6 {[%clk 0:02:49]} 10. Qe2 {[%clk 0:02:41]}  Nf6 {[%clk 0:02:38]} 11. O-O-O {[%clk 0:02:33]}  Nbd7 {[%clk 0:02:27]} 12. e4 {[%clk 0:02:30]}  e5 {[%clk 0:02:21]} 13. h5 {[%clk 0:02:29]}  O-O-O {[%clk 0:02:10]} 14. Ba6 {[%clk 0:02:25]}  g6 {[%clk 0:01:59]} 15. hxg6 {[%clk 0:01:53]}  fxg6 {[%clk 0:02:00]} 16. Nh4 {[%clk 0:01:54]}  Rhg8 {[%clk 0:01:59]} 17. Bxb7+ {[%clk 0:01:38]}  Kxb7 {[%clk 0:02:00]} 18. d5 {[%clk 0:01:38]}  Rdf8 {[%clk 0:01:54]} 19. Rh3 {[%clk 0:01:34]}  Nc5 {[%clk 0:01:46]} 20. b4 {[%clk 0:01:27]}  Na6 {[%clk 0:01:43]} 21. Qc4 {[%clk 0:01:18]}  Nb8 {[%clk 0:01:39]} 22. Qe2 {[%clk 0:01:06]}  Nh5 {[%clk 0:01:32]} 23. Nxg6 {[%clk 0:00:59]}  Rxg6 {[%clk 0:01:32]} 24. Rxh5 {[%clk 0:00:59]}  Rxg2 {[%clk 0:01:32]} 25. Rxh6 {[%clk 0:00:59]}  Rfxf2 {[%clk 0:01:30]} 26. Qe3 {[%clk 0:00:59]}  Na6 {[%clk 0:01:18]} 27. a3 {[%clk 0:00:58]}  Qg7 {[%clk 0:01:06]} 28. Rh3 {[%clk 0:00:49]}  Nb8 {[%clk 0:01:05]} 29. Rf3 {[%clk 0:00:45]}  Re2 {[%clk 0:01:05]} 30. Qc3 {[%clk 0:00:37]}  a6 {[%clk 0:00:49]} 31. Kb1 {[%clk 0:00:35]}  Nd7 {[%clk 0:00:43]} 32. Qc6+ {[%clk 0:00:22]}  Kb8 {[%clk 0:00:43]} 33. Rc3 {[%clk 0:00:11]}  Nf6 {[%clk 0:00:39]} 34. Rd3 {[%clk 0:00:07]}  Qg5 {[%clk 0:00:32]} 35. Rc3 {[%clk 0:00:06]}  Qg7 {[%clk 0:00:22]} 36. Rh1 {[%clk 0:00:03]}  Rh2 {[%clk 0:00:06]} 37. Rxh2 {[%clk 0:00:03]}  Rxh2 {[%clk 0:00:07]} 38. Rd3 {[%clk 0:00:02]}  Rf2 {[%clk 0:00:05]} 39. Kb2 {[%clk 0:00:02]}  Qe7 {[%clk 0:00:02]} 40. Kb3 {[%clk 0:00:02]}  Qd7 {[%clk 0:00:02]} 41. Qc4 {[%clk 0:00:01]} 1-0


[Site "https://www.chess.com"]

[Event "Early Titled Tuesday Blitz | February 8 2022"]
[White "Yanayt, Eugene"]
[Black "Rudykh, Stepan"]
[WhiteFideId "2020165"]
[BlackFideId "4180321"]
[WhiteElo "2046"]
[BlackElo "2125"]
[Result "1-0"]
[Round "05"]
[TimeControl "180+1"]
[Date "2022.02.08"]
[WhiteClock "0:00:27"]
[BlackClock "0:00:43"]

1. d4 {[%clk 0:01:10]}  e6 {[%clk 0:02:59]} 2. g3 {[%clk 0:01:09]}  f5 {[%clk 0:02:59]} 3. Bg2 {[%clk 0:01:09]}  Nf6 {[%clk 0:02:59]} 4. Nh3 {[%clk 0:01:09]}  d6 {[%clk 0:02:58]} 5. O-O {[%clk 0:01:10]}  Be7 {[%clk 0:02:54]} 6. Nd2 {[%clk 0:01:10]}  e5 {[%clk 0:02:50]} 7. Nc4 {[%clk 0:01:07]}  e4 {[%clk 0:02:17]} 8. f3 {[%clk 0:01:06]}  Be6 {[%clk 0:02:07]} 9. Ne3 {[%clk 0:01:06]}  d5 {[%clk 0:02:04]} 10. Nf4 {[%clk 0:01:04]}  Bf7 {[%clk 0:02:00]} 11. Nxf5 {[%clk 0:01:04]}  O-O {[%clk 0:01:58]} 12. fxe4 {[%clk 0:00:57]}  dxe4 {[%clk 0:01:51]} 13. Nxe7+ {[%clk 0:00:49]}  Qxe7 {[%clk 0:01:52]} 14. e3 {[%clk 0:00:48]}  Bc4 {[%clk 0:01:41]} 15. Rf2 {[%clk 0:00:45]}  a5 {[%clk 0:01:23]} 16. b3 {[%clk 0:00:44]}  Ba6 {[%clk 0:01:23]} 17. c4 {[%clk 0:00:43]}  Nc6 {[%clk 0:01:18]} 18. Bb2 {[%clk 0:00:42]}  Rad8 {[%clk 0:01:17]} 19. a3 {[%clk 0:00:42]}  Ne5 {[%clk 0:01:13]} 20. h3 {[%clk 0:00:38]}  b5 {[%clk 0:01:07]} 21. Rc1 {[%clk 0:00:36]}  bxc4 {[%clk 0:01:06]} 22. bxc4 {[%clk 0:00:36]}  Nxc4 {[%clk 0:01:06]} 23. Qb3 {[%clk 0:00:34]}  Qf7 {[%clk 0:01:04]} 24. d5 {[%clk 0:00:32]}  Ne5 {[%clk 0:00:59]} 25. Bxe5 {[%clk 0:00:31]}  Rfe8 {[%clk 0:00:55]} 26. Rxc7 {[%clk 0:00:30]}  Qf8 {[%clk 0:00:53]} 27. d6+ {[%clk 0:00:29]}  Kh8 {[%clk 0:00:53]} 28. Ne6 {[%clk 0:00:28]}  Rxe6 {[%clk 0:00:52]} 29. Qxe6 {[%clk 0:00:28]}  Rb8 {[%clk 0:00:45]} 30. Rxf6 {[%clk 0:00:27]}  Rb1+ {[%clk 0:00:43]} 31. Kh2 {[%clk 0:00:27]} 1-0


[Site "https://www.chess.com"]

[Event "Early Titled Tuesday Blitz | February 8 2022"]
[White "Yonal, Timur"]
[Black "Jary, Sergey"]
[WhiteFideId "44115725"]
[BlackFideId "14110350"]
[WhiteElo "1762"]
[BlackElo "2260"]
[Result "0-1"]
[Round "05"]
[TimeControl "180+1"]
[Date "2022.02.08"]
[WhiteClock "0:00:01"]
[BlackClock "0:01:29"]

1. e4 {[%clk 0:03:00]}  g6 {[%clk 0:02:31]} 2. d4 {[%clk 0:02:57]}  Bg7 {[%clk 0:02:30]} 3. Nc3 {[%clk 0:02:52]}  a6 {[%clk 0:02:30]} 4. Nf3 {[%clk 0:02:48]}  b5 {[%clk 0:02:30]} 5. Bd3 {[%clk 0:02:46]}  Bb7 {[%clk 0:02:29]} 6. O-O {[%clk 0:02:45]}  d6 {[%clk 0:02:29]} 7. a3 {[%clk 0:02:41]}  Nd7 {[%clk 0:02:29]} 8. Re1 {[%clk 0:02:40]}  c5 {[%clk 0:02:30]} 9. dxc5 {[%clk 0:02:36]}  dxc5 {[%clk 0:02:29]} 10. Nd5 {[%clk 0:02:33]}  e6 {[%clk 0:02:26]} 11. Bf4 {[%clk 0:01:39]}  Rc8 {[%clk 0:02:01]} 12. h3 {[%clk 0:01:12]}  c4 {[%clk 0:01:55]} 13. Bf1 {[%clk 0:01:05]}  Nc5 {[%clk 0:01:53]} 14. Bg5 {[%clk 0:00:43]}  f6 {[%clk 0:01:46]} 15. Bf4 {[%clk 0:00:25]}  Nxe4 {[%clk 0:01:45]} 16. Nc7+ {[%clk 0:00:16]}  Rxc7 {[%clk 0:01:45]} 17. Bxc7 {[%clk 0:00:08]}  Qxc7 {[%clk 0:01:43]} 18. Nd2 {[%clk 0:00:08]}  Nxd2 {[%clk 0:01:39]} 19. Qxd2 {[%clk 0:00:06]}  e5 {[%clk 0:01:39]} 20. f4 {[%clk 0:00:05]}  Ne7 {[%clk 0:01:37]} 21. fxe5 {[%clk 0:00:05]}  fxe5 {[%clk 0:01:37]} 22. Qf2 {[%clk 0:00:04]}  e4 {[%clk 0:01:33]} 23. Rad1 {[%clk 0:00:03]}  Nf5 {[%clk 0:01:33]} 24. Qd2 {[%clk 0:00:02]}  O-O {[%clk 0:01:32]} 25. Be2 {[%clk 0:00:01]}  Bxb2 {[%clk 0:01:31]} 26. Bg4 {[%clk 0:00:01]}  Bxa3 {[%clk 0:01:29]} 0-1


[Site "https://www.chess.com"]